[Event "Championnat d'Europe Rapide"]
[Date "2024.12.08"]
[White "Upleger, Martin"]
[Black "Dragnev, Valentin"]
[WhiteElo "2297"]
[BlackElo "2563"]
[Round "8.40"]
[Result "0-1"]
[TimeControl "900+10"]

1. d4 {[%emt 00:00:02] [%clk 00:15:17]} e6 {[%emt 00:00:07] [%clk 00:15:13]} 2.
e4 {[%emt 00:00:10] [%clk 00:15:18]} d5 {[%emt 00:00:03] [%clk 00:15:21]} 3.
exd5 {[%emt 00:00:02] [%clk 00:15:26]} exd5 {[%emt 00:00:03] [%clk 00:15:28]} 4.
Nf3 {[%emt 00:00:01] [%clk 00:15:34]} Nc6 {[%emt 00:00:12] [%clk 00:15:25]} 5.
Bd3 {[%emt 00:00:29] [%clk 00:15:16]} Bd6 {[%emt 00:00:05] [%clk 00:15:30]} 6.
O-O {[%emt 00:00:05] [%clk 00:15:21]} Nge7 {[%emt 00:00:02] [%clk 00:15:38]} 7.
c4 {[%emt 00:00:37] [%clk 00:14:54]} dxc4 {[%emt 00:00:22] [%clk 00:15:25]} 8.
Bxc4 {[%emt 00:00:02] [%clk 00:15:03]} O-O {[%emt 00:00:25] [%clk 00:15:10]} 9.
h3 {[%emt 00:00:05] [%clk 00:15:09]} Bf5 {[%emt 00:00:27] [%clk 00:14:53]} 10.
a3 {[%emt 00:00:07] [%clk 00:15:12]} Qd7 {[%emt 00:00:07] [%clk 00:14:56]} 11.
Nc3 {[%emt 00:01:30] [%clk 00:13:52]} Ng6 {[%emt 00:02:54] [%clk 00:12:12]} 12.
Re1 {[%emt 00:01:06] [%clk 00:12:56]} h6 {[%emt 00:00:29] [%clk 00:11:54]} 13.
Nb5 {[%emt 00:02:46] [%clk 00:10:20]} Rae8 {[%emt 00:01:06] [%clk 00:10:57]} 14.
Rxe8 {[%emt 00:03:12] [%clk 00:07:18]} Rxe8 {[%emt 00:00:03] [%clk 00:11:05]}
15. Nxd6 {[%emt 00:00:01] [%clk 00:07:26]} Qxd6 {[%emt 00:00:13] [%clk
00:11:02]} 16. Be3 {[%emt 00:00:02] [%clk 00:07:34]} Be4 {[%emt 00:00:42] [%clk
00:10:30]} 17. Rc1 {[%emt 00:00:03] [%clk 00:07:41]} Nge7 {[%emt 00:03:30] [%clk
00:07:10]} 18. Nd2 {[%emt 00:02:11] [%clk 00:05:40]} Bd5 {[%emt 00:00:10] [%clk
00:07:10]} 19. Qg4 {[%emt 00:00:04] [%clk 00:05:46]} Bxc4 {[%emt 00:01:48] [%clk
00:05:32]} 20. Nxc4 {[%emt 00:00:06] [%clk 00:05:50]} Qf6 {[%emt 00:00:04] [%clk
00:05:38]} 21. Qd7 {[%emt 00:00:40] [%clk 00:05:20]} Rc8 {[%emt 00:01:12] [%clk
00:04:36]} 22. d5 {[%emt 00:00:22] [%clk 00:05:08]} Nb8 {[%emt 00:00:15] [%clk
00:04:31]} 23. Qb5 {[%emt 00:00:12] [%clk 00:05:07]} b6 {[%emt 00:00:08] [%clk
00:04:33]} 24. Rd1 {[%emt 00:00:06] [%clk 00:05:10]} Rd8 {[%emt 00:00:53] [%clk
00:03:50]} 25. Bd4 {[%emt 00:01:04] [%clk 00:04:15]} Qg6 {[%emt 00:01:00] [%clk
00:03:00]} 26. Be5 {[%emt 00:01:56] [%clk 00:02:29]} a6 {[%emt 00:02:28] [%clk
00:00:42]} 27. Qb3 {[%emt 00:00:22] [%clk 00:02:18]} Rxd5 {[%emt 00:00:02] [%clk
00:00:50]} 28. Bxc7 {[%emt 00:00:06] [%clk 00:02:21]} Nd7 {[%emt 00:00:09] [%clk
00:00:51]} 29. Nxb6 {[%emt 00:00:52] [%clk 00:01:40]} Nxb6 {[%emt 00:00:06]
[%clk 00:00:55]} 30. Re1 {[%emt 00:00:23] [%clk 00:01:26]} Rb5 {[%emt 00:00:29]
[%clk 00:00:36]} 31. Qf3 {[%emt 00:00:17] [%clk 00:01:19]} Nbd5 {[%emt 00:00:03]
[%clk 00:00:43]} 32. b4 {[%emt 00:00:16] [%clk 00:01:13]} Nxc7 {[%emt 00:00:23]
[%clk 00:00:31]} 33. Rxe7 {[%emt 00:00:02] [%clk 00:01:20]} Ne6 {[%emt 00:00:04]
[%clk 00:00:37]} 34. Qa8+ {[%emt 00:00:14] [%clk 00:01:16]} Kh7 {[%clk
00:00:46]} 35. Qxa6 {[%emt 00:00:01] [%clk 00:01:25]} Re5 {[%emt 00:00:26] [%clk
00:00:30]} 36. Qf1 {[%emt 00:00:24] [%clk 00:01:11]} Qf6 {[%emt 00:00:14] [%clk
00:00:26]} 37. Re8 {[%emt 00:00:10] [%clk 00:01:11]} Qf4 {[%emt 00:00:01] [%clk
00:00:35]} 38. Rc8 {[%emt 00:00:28] [%clk 00:00:54]} Qd2 {[%emt 00:00:20] [%clk
00:00:25]} 39. Rc1 {[%emt 00:00:07] [%clk 00:00:57]} Nf4 {[%emt 00:00:04] [%clk
00:00:31]} 40. Kh1 {[%emt 00:00:11] [%clk 00:00:56]} Nd3 {[%emt 00:00:07] [%clk
00:00:34]} 41. Rb1 {[%emt 00:00:24] [%clk 00:00:42]} Nxf2+ {[%emt 00:00:02]
[%clk 00:00:42]} 42. Kg1 {[%clk 00:00:51]} Re2 {[%emt 00:00:19] [%clk 00:00:34]}
43. b5 {[%emt 00:00:14] [%clk 00:00:47]} Qe3 {[%emt 00:00:12] [%clk 00:00:32]}
44. Kh2 {[%emt 00:00:08] [%clk 00:00:48]} Qf4+ {[%emt 00:00:04] [%clk 00:00:39]}
45. Kg1 {[%emt 00:00:07] [%clk 00:00:51]} Nxh3+ {[%emt 00:00:02] [%clk
00:00:46]} 46. Kh1 {[%clk 00:01:00]} Nf2+ {[%emt 00:00:12] [%clk 00:00:45]} 47.
Kg1 {[%emt 00:00:01] [%clk 00:01:09]} Qe3 {[%emt 00:00:25] [%clk 00:00:30]} 48.
Kh2 {[%emt 00:00:06] [%clk 00:01:12]} Ng4+ {[%emt 00:00:13] [%clk 00:00:28]} 49.
Kh1 {[%emt 00:00:15] [%clk 00:01:08]} Qe5 {[%emt 00:00:02] [%clk 00:00:35]} 0-1

[Site "Europe Echecs"]

[Event "Championnat d'Europe Rapide"]
[Date "2024.12.08"]
[White "Pezelj, Sinisa"]
[Black "Kalezic, Blazo"]
[WhiteElo "2201"]
[BlackElo "2382"]
[Round "8.41"]
[Result "0-1"]
[TimeControl "900+10"]

1. c4 {[%emt 00:33:00] [%clk 00:15:19]} e5 {[%emt 00:00:07] [%clk 00:15:13]} 2.
Nc3 {[%emt 00:00:03] [%clk 00:15:26]} Nc6 {[%emt 00:00:26] [%clk 00:14:56]} 3.
Nf3 {[%emt 00:00:04] [%clk 00:15:33]} f5 {[%emt 00:00:38] [%clk 00:14:28]} 4. e3
{[%emt 00:01:42] [%clk 00:14:01]} e4 {[%emt 00:00:15] [%clk 00:14:22]} 5. Nd4
{[%emt 00:00:56] [%clk 00:13:15]} Nxd4 {[%emt 00:00:06] [%clk 00:14:27]} 6. exd4
{[%emt 00:00:01] [%clk 00:13:24]} Nf6 {[%emt 00:00:04] [%clk 00:14:33]} 7. d3
{[%emt 00:00:15] [%clk 00:13:19]} Bb4 {[%emt 00:00:10] [%clk 00:14:32]} 8. Bd2
{[%emt 00:00:28] [%clk 00:13:01]} Bxc3 {[%emt 00:00:20] [%clk 00:14:22]} 9. Bxc3
{[%emt 00:00:08] [%clk 00:13:04]} O-O {[%emt 00:00:08] [%clk 00:14:23]} 10. Qc2
{[%emt 00:00:28] [%clk 00:12:46]} d5 {[%emt 00:00:55] [%clk 00:13:38]} 11. O-O-O
{[%emt 00:00:10] [%clk 00:12:46]} Be6 {[%emt 00:00:26] [%clk 00:13:22]} 12. c5
{[%emt 00:02:06] [%clk 00:10:50]} a5 {[%emt 00:01:26] [%clk 00:12:06]} 13. f3
{[%emt 00:01:31] [%clk 00:09:29]} Qd7 {[%emt 00:00:23] [%clk 00:11:52]} 14. dxe4
{[%emt 00:01:09] [%clk 00:08:31]} fxe4 {[%emt 00:00:27] [%clk 00:11:34]} 15. Be2
{[%emt 00:00:56] [%clk 00:07:46]} Bf5 {[%emt 00:00:33] [%clk 00:11:11]} 16. Qd2
{[%emt 00:00:42] [%clk 00:07:14]} Rfe8 {[%emt 00:00:48] [%clk 00:10:33]} 17.
Rdf1 {[%emt 00:00:54] [%clk 00:06:30]} Bg6 {[%emt 00:00:18] [%clk 00:10:24]} 18.
f4 {[%emt 00:00:18] [%clk 00:06:23]} e3 {[%emt 00:00:12] [%clk 00:10:22]} 19.
Qd1 {[%emt 00:00:14] [%clk 00:06:19]} Qf5 {[%emt 00:00:02] [%clk 00:10:30]} 0-1

[Site "Europe Echecs"]

[Event "Championnat d'Europe Rapide"]
[Date "2024.12.08"]
[White "Stankovic, Milos"]
[Black "Druckenthaner, Andreas"]
[WhiteElo "2462"]
[BlackElo "2206"]
[Round "8.42"]
[Result "1-0"]
[TimeControl "900+10"]

1. d4 {[%emt 00:00:03] [%clk 00:15:16]} f5 {[%emt 00:00:03] [%clk 00:15:17]} 2.
g4 {[%emt 00:00:14] [%clk 00:15:12]} fxg4 {[%emt 00:00:04] [%clk 00:15:23]} 3.
h3 {[%emt 00:00:01] [%clk 00:15:20]} d5 {[%emt 00:00:08] [%clk 00:15:26]} 4. Bf4
{[%emt 00:00:22] [%clk 00:15:08]} Nf6 {[%emt 00:00:15] [%clk 00:15:21]} 5. Nc3
{[%emt 00:00:04] [%clk 00:15:13]} a6 {[%emt 00:00:48] [%clk 00:14:44]} 6. Qd3
{[%emt 00:00:09] [%clk 00:15:13]} Nc6 {[%emt 00:00:14] [%clk 00:14:41]} 7. O-O-O
{[%emt 00:00:36] [%clk 00:14:47]} g6 {[%emt 00:00:34] [%clk 00:14:18]} 8. hxg4
{[%emt 00:00:17] [%clk 00:14:39]} Bxg4 {[%emt 00:00:08] [%clk 00:14:20]} 9. f3
{[%emt 00:00:07] [%clk 00:14:42]} Nb4 {[%emt 00:01:44] [%clk 00:12:46]} 10. Qd2
{[%emt 00:00:12] [%clk 00:14:39]} Bf5 {[%emt 00:00:03] [%clk 00:12:54]} 11. a3
{[%emt 00:04:16] [%clk 00:10:34]} Nc6 {[%emt 00:00:09] [%clk 00:12:55]} 12. e4
{[%emt 00:02:15] [%clk 00:08:28]} Be6 {[%emt 00:04:15] [%clk 00:08:50]} 13. Nh3
{[%emt 00:00:21] [%clk 00:08:16]} Bg8 {[%emt 00:01:30] [%clk 00:07:31]} 14. Bg5
{[%emt 00:01:56] [%clk 00:06:30]} Bg7 {[%emt 00:01:03] [%clk 00:06:39]} 15. Nf4
{[%emt 00:00:18] [%clk 00:06:21]} dxe4 {[%emt 00:00:24] [%clk 00:06:26]} 16.
fxe4 {[%emt 00:00:11] [%clk 00:06:18]} e5 {[%emt 00:01:14] [%clk 00:05:24]} 17.
Nfd5 {[%emt 00:02:34] [%clk 00:03:53]} exd4 {[%emt 00:01:31] [%clk 00:04:04]}
18. Qf4 {[%emt 00:01:28] [%clk 00:02:35]} Bxd5 {[%emt 00:02:07] [%clk 00:02:07]}
19. Nxd5 {[%emt 00:00:10] [%clk 00:02:35]} Nxd5 {[%emt 00:01:24] [%clk
00:00:54]} 20. exd5 {[%emt 00:00:16] [%clk 00:02:28]} Qxd5 {[%emt 00:00:08]
[%clk 00:00:56]} 21. Re1+ {[%emt 00:00:58] [%clk 00:01:40]} Be5 {[%emt 00:00:29]
[%clk 00:00:37]} 22. Bf6 {[%emt 00:01:27] [%clk 00:00:23]} O-O {[%emt 00:00:29]
[%clk 00:00:17]} 23. Qh6 {[%emt 00:00:11] [%clk 00:00:22]} 1-0

[Site "Europe Echecs"]

[Event "Championnat d'Europe Rapide"]
[Date "2024.12.08"]
[White "Saraci, Nderim"]
[Black "Kukov, Velislav"]
[WhiteElo "2431"]
[BlackElo "2316"]
[Round "8.43"]
[Result "1-0"]
[TimeControl "900+10"]

1. d4 {[%clk 00:15:17]} Nf6 {[%emt 00:00:03] [%clk 00:15:17]} 2. Nf3 {[%emt
00:00:03] [%clk 00:15:24]} d5 {[%emt 00:00:07] [%clk 00:15:20]} 3. Bf4 {[%emt
00:00:04] [%clk 00:15:31]} c5 {[%emt 00:00:03] [%clk 00:15:27]} 4. e3 {[%emt
00:00:03] [%clk 00:15:38]} cxd4 {[%emt 00:00:03] [%clk 00:15:34]} 5. exd4 {[%emt
00:00:02] [%clk 00:15:45]} Nc6 {[%emt 00:00:02] [%clk 00:15:43]} 6. c3 {[%emt
00:00:05] [%clk 00:15:49]} Bg4 {[%emt 00:00:02] [%clk 00:15:51]} 7. Nbd2 {[%emt
00:00:05] [%clk 00:15:54]} e6 {[%emt 00:00:03] [%clk 00:15:58]} 8. Qb3 {[%emt
00:00:07] [%clk 00:15:57]} Qc8 {[%emt 00:00:03] [%clk 00:16:06]} 9. Ne5 {[%emt
00:00:21] [%clk 00:15:45]} Nxe5 {[%emt 00:00:26] [%clk 00:15:50]} 10. Bxe5
{[%emt 00:00:11] [%clk 00:15:44]} Nd7 {[%emt 00:00:43] [%clk 00:15:17]} 11. Bg3
{[%emt 00:00:21] [%clk 00:15:33]} Be7 {[%emt 00:00:27] [%clk 00:15:00]} 12. Bd3
{[%emt 00:00:24] [%clk 00:15:19]} Bh5 {[%emt 00:00:04] [%clk 00:15:06]} 13. O-O
{[%emt 00:00:30] [%clk 00:14:59]} O-O {[%emt 00:00:11] [%clk 00:15:04]} 14. a4
{[%emt 00:03:04] [%clk 00:12:06]} Bg6 {[%emt 00:00:34] [%clk 00:14:40]} 15. Be2
{[%emt 00:02:02] [%clk 00:10:14]} Nf6 {[%emt 00:02:59] [%clk 00:11:51]} 16. a5
{[%emt 00:02:27]} Ne4 {[%clk 00:10:46]} 17. Nxe4 {[%emt 00:00:28] [%clk
00:08:55]} Bxe4 {[%emt 00:00:02] [%clk 00:10:54]} 18. f3 {[%emt 00:03:39] [%clk
00:05:25]} Bg6 {[%emt 00:00:42] [%clk 00:10:23]} 19. c4 {[%emt 00:00:03] [%clk
00:05:31]} dxc4 {[%emt 00:00:28] [%clk 00:10:05]} 20. Bxc4 {[%emt 00:00:05]
[%clk 00:05:36]} Qd7 {[%emt 00:01:57] [%clk 00:08:18]} 21. d5 {[%emt 00:00:48]
[%clk 00:04:58]} exd5 {[%emt 00:03:28] [%clk 00:05:01]} 22. Bxd5 {[%emt
00:00:07] [%clk 00:05:01]} Rac8 {[%emt 00:00:30] [%clk 00:04:41]} 23. Qxb7
{[%emt 00:01:09] [%clk 00:04:02]} Qxb7 {[%emt 00:00:08] [%clk 00:04:42]} 24.
Bxb7 {[%emt 00:00:02] [%clk 00:04:11]} Rc2 {[%emt 00:00:01] [%clk 00:04:50]} 25.
Bf2 {[%emt 00:01:33] [%clk 00:02:48]} Rxb2 {[%emt 00:02:29] [%clk 00:02:31]} 26.
a6 {[%emt 00:00:02] [%clk 00:02:56]} Rb8 {[%emt 00:02:24] [%clk 00:00:18]} 27.
Rfc1 {[%emt 00:00:31] [%clk 00:02:35]} Rxf2 {[%emt 00:00:11] [%clk 00:00:16]}
28. Kxf2 {[%emt 00:00:09] [%clk 00:02:36]} h6 {[%emt 00:00:09] [%clk 00:00:17]}
29. Ra5 {[%emt 00:00:49] [%clk 00:01:57]} Bd8 {[%emt 00:00:14] [%clk 00:00:14]}
30. Rd5 {[%emt 00:00:29] [%clk 00:01:37]} Bb6+ {[%emt 00:00:03] [%clk 00:00:22]}
31. Kg3 {[%emt 00:00:07] [%clk 00:01:39]} Re8 {[%emt 00:00:14] [%clk 00:00:18]}
32. Rc6 {[%emt 00:00:11] [%clk 00:01:38]} Bg1 {[%emt 00:00:07] [%clk 00:00:21]}
33. Rc8 {[%emt 00:00:07] [%clk 00:01:41]} Rxc8 {[%emt 00:00:02] [%clk 00:00:30]}
34. Bxc8 {[%emt 00:00:02] [%clk 00:01:49]} f6 {[%emt 00:00:17] [%clk 00:00:23]}
35. Bf5 {[%emt 00:00:16] [%clk 00:01:43]} Be8 {[%emt 00:00:14] [%clk 00:00:19]}
36. Rd8 {[%emt 00:00:05] [%clk 00:01:47]} Kf7 {[%emt 00:00:01] [%clk 00:00:28]}
37. Bd7 {[%emt 00:00:10] [%clk 00:01:47]} Bxd7 {[%emt 00:00:16] [%clk 00:00:22]}
38. Rxd7+ {[%emt 00:00:02] [%clk 00:01:55]} Kg6 {[%clk 00:00:31]} 39. Rd1 {[%emt
00:00:12] [%clk 00:01:53]} Bb6 {[%emt 00:00:03] [%clk 00:00:39]} 40. f4 {[%emt
00:00:09] [%clk 00:01:54]} Kf5 {[%emt 00:00:13] [%clk 00:00:35]} 41. Kf3 {[%emt
00:00:11] [%clk 00:01:53]} h5 {[%emt 00:00:04] [%clk 00:00:41]} 42. Rd5+ {[%emt
00:00:04] [%clk 00:02:00]} Kg6 {[%emt 00:00:01] [%clk 00:00:50]} 43. Ke4 {[%emt
00:00:05] [%clk 00:02:04]} Bg1 {[%emt 00:00:08] [%clk 00:00:53]} 44. h3 {[%emt
00:00:04] [%clk 00:02:09]} h4 {[%emt 00:00:16] [%clk 00:00:47]} 45. Rd1 {[%emt
00:00:16] [%clk 00:02:03]} Bb6 {[%emt 00:00:13] [%clk 00:00:44]} 46. f5+ {[%emt
00:00:08] [%clk 00:02:05]} Kh6 {[%emt 00:00:14] [%clk 00:00:40]} 47. Kf4 {[%emt
00:00:07] [%clk 00:02:08]} g6 {[%emt 00:00:30] [%clk 00:00:21]} 48. Kg4 {[%emt
00:00:04] [%clk 00:02:14]} Bf2 {[%emt 00:00:08] [%clk 00:00:23]} 49. Rd7 {[%emt
00:00:09] [%clk 00:02:15]} g5 {[%emt 00:00:15] [%clk 00:00:18]} 50. Rd6 {[%emt
00:00:12] [%clk 00:02:12]} Kg7 {[%emt 00:00:03] [%clk 00:00:26]} 51. Kh5 {[%emt
00:00:02] [%clk 00:02:20]} 1-0

[Site "Europe Echecs"]

[Event "Championnat d'Europe Rapide"]
[Date "2024.12.08"]
[White "Savanovic, Aleksandar"]
[Black "Ciric, Pavle"]
[WhiteElo "2354"]
[BlackElo "2346"]
[Round "8.44"]
[Result "1-0"]
[TimeControl "900+10"]

1. e4 {[%emt 00:38:38] [%clk 00:15:19]} e6 {[%clk 00:15:18]} 2. d4 {[%emt
00:00:02] [%clk 00:15:26]} d5 {[%emt 00:00:02] [%clk 00:15:27]} 3. e5 {[%emt
00:00:02] [%clk 00:15:34]} c5 {[%emt 00:00:02] [%clk 00:15:35]} 4. c3 {[%emt
00:00:02] [%clk 00:15:42]} Nc6 {[%emt 00:00:02] [%clk 00:15:44]} 5. Nf3 {[%emt
00:00:01] [%clk 00:15:49]} Qb6 {[%emt 00:00:03] [%clk 00:15:52]} 6. Be2 {[%emt
00:00:02] [%clk 00:15:57]} cxd4 {[%emt 00:00:08] [%clk 00:15:55]} 7. cxd4 {[%emt
00:00:01] [%clk 00:16:05]} Nh6 {[%emt 00:00:05] [%clk 00:16:00]} 8. Bxh6 {[%emt
00:00:09] [%clk 00:16:05]} Qxb2 {[%emt 00:00:02] [%clk 00:16:09]} 9. Nbd2 {[%emt
00:00:02] [%clk 00:16:13]} gxh6 {[%emt 00:00:03] [%clk 00:16:15]} 10. O-O {[%emt
00:00:02] [%clk 00:16:21]} Nxd4 {[%emt 00:00:04] [%clk 00:16:23]} 11. Rb1 {[%emt
00:00:01] [%clk 00:16:29]} Nxe2+ {[%emt 00:01:17] [%clk 00:15:16]} 12. Qxe2
{[%emt 00:00:03] [%clk 00:16:36]} Qa3 {[%emt 00:00:02] [%clk 00:15:24]} 13. Nd4
{[%emt 00:00:07]} a6 {[%emt 00:00:21] [%clk 00:15:09]} 14. Rfc1 {[%emt 00:00:05]
[%clk 00:16:47]} Be7 {[%emt 00:01:28] [%clk 00:13:51]} 15. N2b3 {[%emt 00:02:19]
[%clk 00:14:38]} Bd7 {[%emt 00:00:48] [%clk 00:13:13]} 16. Rc7 {[%emt 00:00:13]
[%clk 00:14:36]} Rb8 {[%emt 00:03:05] [%clk 00:10:18]} 17. Qd2 {[%emt 00:00:45]
[%clk 00:14:00]} Bg5 {[%emt 00:00:53] [%clk 00:09:35]} 18. Qc2 {[%emt 00:00:46]
[%clk 00:13:25]} Bd8 {[%emt 00:00:09] [%clk 00:09:37]} 19. Rc3 {[%emt 00:00:06]
[%clk 00:13:28]} Ba5 {[%emt 00:02:33] [%clk 00:07:14]} 20. Nxa5 {[%emt 00:04:12]
[%clk 00:09:27]} Qxa5 {[%emt 00:00:02] [%clk 00:07:22]} 21. Qd2 {[%emt 00:00:06]
[%clk 00:09:30]} Qa4 {[%emt 00:01:04] [%clk 00:06:28]} 22. Rcb3 {[%emt 00:03:03]
[%clk 00:06:37]} b5 {[%emt 00:02:41] [%clk 00:03:57]} 23. Rb4 {[%emt 00:00:13]
[%clk 00:06:34]} Qa5 {[%emt 00:00:02] [%clk 00:04:05]} 24. Qxh6 {[%emt 00:02:11]
[%clk 00:04:33]} Rc8 {[%emt 00:00:02] [%clk 00:04:14]} 25. h4 {[%emt 00:01:17]
[%clk 00:03:26]} Rc4 {[%emt 00:01:58] [%clk 00:02:26]} 26. Rxc4 {[%emt 00:00:02]
[%clk 00:03:33]} dxc4 {[%emt 00:00:01] [%clk 00:02:35]} 27. Qg7 {[%emt 00:00:25]
[%clk 00:03:18]} Rf8 {[%emt 00:00:01] [%clk 00:02:44]} 28. Qxh7 {[%emt 00:00:02]
[%clk 00:03:26]} Qc3 {[%emt 00:00:44] [%clk 00:02:10]} 29. Rd1 {[%emt 00:01:30]
[%clk 00:02:06]} b4 {[%emt 00:00:27] [%clk 00:01:53]} 30. Qe4 {[%emt 00:00:01]
[%clk 00:02:15]} Ke7 {[%emt 00:01:33] [%clk 00:00:31]} 31. Qb7 {[%emt 00:00:45]
[%clk 00:01:39]} Ke8 {[%emt 00:00:29] [%clk 00:00:12]} 32. Qb8+ {[%emt 00:00:07]
[%clk 00:01:42]} Ke7 {[%emt 00:00:02] [%clk 00:00:20]} 33. Nc6+ {[%emt 00:00:04]
[%clk 00:01:48]} 1-0

[Site "Europe Echecs"]

[Event "Championnat d'Europe Rapide"]
[Date "2024.12.08"]
[White "Wyss, Jonas"]
[Black "Ghimpu, Samuel-Timotei"]
[WhiteElo "2270"]
[BlackElo "2475"]
[Round "8.45"]
[Result "1/2-1/2"]
[TimeControl "900+10"]

1. e4 {[%clk 00:15:17]} c5 {[%emt 00:00:07] [%clk 00:15:14]} 2. Nf3 {[%emt
00:00:03] [%clk 00:15:24]} e6 {[%emt 00:00:02] [%clk 00:15:22]} 3. d4 {[%emt
00:00:06] [%clk 00:15:28]} cxd4 {[%emt 00:00:01] [%clk 00:15:31]} 4. Nxd4 {[%emt
00:00:02] [%clk 00:15:37]} Nf6 {[%emt 00:00:01] [%clk 00:15:39]} 5. Nc3 {[%emt
00:00:04] [%clk 00:15:42]} Nc6 {[%emt 00:00:03] [%clk 00:15:47]} 6. Ndb5 {[%emt
00:00:08] [%clk 00:15:43]} Bc5 {[%emt 00:00:02] [%clk 00:15:55]} 7. Bf4 {[%emt
00:00:44] [%clk 00:15:09]} O-O {[%emt 00:00:06] [%clk 00:15:58]} 8. Bc7 {[%emt
00:00:38] [%clk 00:14:42]} Qe7 {[%emt 00:00:01] [%clk 00:16:08]} 9. Bd6 {[%emt
00:00:05] [%clk 00:14:46]} Bxd6 {[%emt 00:00:02] [%clk 00:16:16]} 10. Qxd6
{[%emt 00:00:07] [%clk 00:14:49]} Qd8 {[%clk 00:16:25]} 11. Qc7 {[%emt 00:01:06]
[%clk 00:13:52]} d5 {[%emt 00:01:20] [%clk 00:15:16]} 12. exd5 {[%emt 00:00:44]
[%clk 00:13:18]} exd5 {[%emt 00:00:03] [%clk 00:15:24]} 13. Qxd8 {[%emt
00:00:12] [%clk 00:13:15]} Rxd8 {[%clk 00:15:33]} 14. O-O-O {[%emt 00:00:18]
[%clk 00:13:07]} d4 {[%emt 00:00:01] [%clk 00:15:42]} 15. Ne2 {[%emt 00:03:13]
[%clk 00:10:04]} Ne4 {[%emt 00:00:02] [%clk 00:15:51]} 16. Rg1 {[%emt 00:00:37]
[%clk 00:09:36]} Nxf2 {[%emt 00:00:02] [%clk 00:15:59]} 17. Rd2 {[%emt 00:00:34]
[%clk 00:09:12]} Ne4 {[%emt 00:00:48] [%clk 00:15:21]} 18. Rd1 {[%emt 00:00:08]
[%clk 00:09:15]} Bg4 {[%emt 00:13:46] [%clk 00:01:45]} 19. Nbxd4 {[%emt
00:00:38] [%clk 00:08:47]} Nf2 {[%emt 00:00:30] [%clk 00:01:25]} 20. Rd2 {[%emt
00:00:25] [%clk 00:08:31]} Ne4 {[%clk 00:01:34]} 21. Rd1 {[%emt 00:00:55] [%clk
00:07:46]} Nf2 {[%emt 00:00:24] [%clk 00:01:21]} 22. Rd2 {[%emt 00:00:01] [%clk
00:07:54]} Bxe2 {[%emt 00:00:12] [%clk 00:01:20]} 23. Nxc6 {[%emt 00:01:38]
[%clk 00:06:25]} Rxd2 {[%emt 00:00:02] [%clk 00:01:28]} 24. Kxd2 {[%emt
00:00:02] [%clk 00:06:34]} Bxf1 {[%clk 00:01:38]} 25. Rxf1 {[%emt 00:00:03]
[%clk 00:06:40]} Ng4 {[%emt 00:01:23] [%clk 00:00:25]} 26. h3 {[%emt 00:00:37]
[%clk 00:06:13]} Nf6 {[%emt 00:00:09] [%clk 00:00:26]} 27. Nd4 {[%emt 00:00:36]
[%clk 00:05:47]} Rd8 {[%emt 00:00:13] [%clk 00:00:24]} 28. c3 {[%emt 00:00:03]
[%clk 00:05:54]} Ne4+ {[%clk 00:00:34]} 29. Kd3 {[%emt 00:00:29] [%clk
00:05:35]} Nd6 {[%clk 00:00:43]} 30. Re1 {[%emt 00:00:42] [%clk 00:05:03]} Kf8
{[%emt 00:00:25] [%clk 00:00:27]} 31. Re5 {[%emt 00:00:40] [%clk 00:04:32]} g6
{[%emt 00:00:02] [%clk 00:00:36]} 32. Rd5 {[%emt 00:00:31] [%clk 00:04:12]} Ke7
{[%clk 00:00:46]} 33. c4 {[%emt 00:00:12] [%clk 00:04:09]} Rc8 {[%emt 00:00:12]
[%clk 00:00:44]} 34. c5 {[%emt 00:00:41] [%clk 00:03:39]} Ne8 {[%emt 00:00:01]}
35. b4 {[%emt 00:00:31] [%clk 00:03:16]} a6 {[%emt 00:00:01] [%clk 00:01:03]}
36. a4 {[%emt 00:00:09] [%clk 00:03:18]} Nf6 {[%emt 00:00:28] [%clk 00:00:44]}
37. Rd6 {[%emt 00:00:27] [%clk 00:03:01]} Nd7 {[%emt 00:00:02] [%clk 00:00:52]}
38. Kc4 {[%emt 00:00:35] [%clk 00:02:37]} a5 {[%emt 00:00:13] [%clk 00:00:50]}
39. Kb5 {[%emt 00:01:40] [%clk 00:01:05]} axb4 {[%emt 00:00:16] [%clk 00:00:44]}
40. Rd5 {[%emt 00:00:02] [%clk 00:01:13]} Nb8 {[%emt 00:00:35] [%clk 00:00:19]}
41. Kxb4 {[%emt 00:00:20] [%clk 00:01:03]} Na6+ {[%emt 00:00:15] [%clk
00:00:15]} 42. Kc4 {[%emt 00:00:03] [%clk 00:01:10]} Nc7 {[%emt 00:00:02] [%clk
00:00:23]} 43. Rd6 {[%emt 00:00:17] [%clk 00:01:03]} Na6 {[%clk 00:00:32]} 44.
Rd5 {[%emt 00:00:39] [%clk 00:00:33]} Nc7 {[%emt 00:00:12] [%clk 00:00:31]} 45.
Rd6 {[%emt 00:00:02] [%clk 00:00:40]} Na6 {[%emt 00:00:17] [%clk 00:00:24]} 46.
Rd5 {[%emt 00:01:27]} 1/2-1/2

[Site "Europe Echecs"]